bitfinex-derivatives/quotes_ETHF0:USTF0_20240907
["timestamp","ask_amount","ask_price","bid_price","bid_amount"]
[1725729540264,3.64438,2290.6,2290.2,1.1201]
[1725729540265,3.2078,2290.6,2290.2,1.1201]
[1725729540572,1.56192,2290.5,2290.3,0.43663]
[1725729541673,0.43662,2290.4,2290.3,0.43663]
[1725729542470,0.43664,2290.3,2290.2,0.7564]
[1725729542670,0.7565,2290.5,2290.2,0.7564]
[1725729542873,3.2078,2290.6,2290.2,0.7564]
[1725729543063,3.2078,2290.6,2290.4,0.43661]
[1725729543668,3.64439,2290.6,2290.4,0.43661]
[1725729544070,3.2078,2290.6,2290.5,0.4366]
[1725729544371,0.752,2290.8,2290.3,1.09161]
[1725729544576,3.64432,2291.0,2290.8,0.43653]
[1725729544773,3.64432,2291.0,2290.8,0.43654]
[1725729544972,0.43653,2290.9,2290.8,0.43654]
[1725729545371,3.64431,2291.0,2290.5,0.22361781]
[1725729545571,3.64431,2291.0,2290.8,0.43654]
[1725729546272,3.64431,2291.0,2290.9,0.43653]
[1725729546482,3.2078,2291.0,2290.9,0.43653]
[1725729547568,3.64431,2291.0,2290.8,0.43653]
[1725729547979,3.64431,2291.0,2290.9,0.43653]
[1725729548273,3.2078,2291.0,2290.9,0.43653]
[1725729548669,0.765,2291.1,2291.0,0.43651]
[1725729548973,0.3623,2291.3,2291.0,0.43651]
[1725729549176,1.1451,2291.3,2291.0,0.43651]
[1725729549475,0.43648,2291.2,2291.0,0.43651]
[1725729549870,0.43649,2291.1,2291.0,0.43651]
[1725729550179,0.43648,2291.2,2291.0,0.43651]
[1725729550865,0.43649,2291.2,2291.0,0.43651]
[1725729551071,0.7828,2291.3,2291.2,0.43647]
[1725729551272,1.21925,2291.3,2291.2,0.43647]
[1725729551775,3.64424,2291.4,2291.2,0.43647]
[1725729552371,3.2078,2291.4,2291.3,0.43645]
[1725729553075,3.2078,2291.4,2291.0,1.13366659]
[1725729553076,0.3735,2291.7,2291.5,0.4364]
[1725729553383,0.43639,2291.6,2291.4,0.43642]
[1725729553679,0.80989,2291.7,2291.4,0.43642]
[1725729554681,0.43641,2291.5,2291.3,0.43644]
[1725729554994,3.6442,2291.6,2291.4,0.43643]
[1725729556877,0.4364,2291.6,2291.5,0.3732]
[1725729557671,0.4364,2291.6,2291.5,0.7462]
[1725729558073,3.2078,2291.9,2291.5,1.1826]
[1725729558269,3.2078,2291.9,2291.5,0.7462]
[1725729558475,0.43639,2291.6,2291.5,0.7462]
[1725729558673,0.4364,2291.6,2291.4,0.43641]
[1725729559780,0.4364,2291.6,2291.4,0.81561]
[1725729560381,0.4364,2291.6,2291.5,0.43641]
[1725729560577,0.43639,2291.7,2291.5,0.43641]
[1725729562582,3.64414,2291.9,2291.7,0.43636]
[1725729562781,3.64414,2291.9,2291.8,1.1323]
[1725729563189,4.90414,2291.9,2291.8,1.1323]
[1725729563384,4.90414,2291.9,2291.8,0.7406]
[1725729563991,4.90414,2291.9,2291.6,0.43638]
[1725729563992,0.43638,2291.7,2291.5,0.4364]
[1725729564485,0.43639,2291.7,2291.5,0.4364]
[1725729564882,0.43639,2291.7,2291.4,0.7774]
[1725729565088,0.43639,2291.7,2291.5,0.4364]
[1725729566079,0.43639,2291.7,2291.6,0.43639]
[1725729568280,0.43639,2291.7,2291.5,0.4364]
[1725729569085,0.43639,2291.7,2291.6,0.43639]
[1725729569287,0.43639,2291.7,2291.5,0.4364]
[1725729569288,0.761,2291.6,2291.5,0.4364]
[1725729569477,0.43639,2291.7,2291.5,0.4364]
[1725729570277,0.43636,2291.8,2291.6,0.43638]
[1725729570585,0.43636,2291.8,2291.7,0.79677]
[1725729570784,0.43636,2291.8,2291.7,0.3604]
[1725729571086,0.43636,2291.8,2291.7,0.79677]
[1725729571990,3.64415,2291.9,2291.7,0.79677]
[1725729572188,0.43636,2291.8,2291.7,0.79677]
[1725729572684,3.2078,2291.9,2291.8,0.43636]
[1725729572985,3.2078,2291.9,2291.8,0.82106]
[1725729573476,3.2078,2291.9,2291.8,1.18936]
[1725729574691,3.2078,2291.9,2291.8,5.55256]
[1725729575080,0.391,2292.6,2292.5,0.43622]
[1725729575286,0.43619,2292.7,2292.5,1.69621]
[1725729575488,0.43619,2292.7,2292.5,0.43621]
[1725729575679,1.21738,2292.8,2292.6,0.4362]
[1725729575880,0.3902,2292.8,2292.7,0.43618]
[1725729576183,0.3792,2293.0,2292.8,0.43616]
[1725729576379,0.81533,2293.0,2292.8,0.43616]
[1725729576790,0.3792,2293.0,2292.8,0.43616]
[1725729578894,0.3792,2293.0,2292.4,6.2278]
[1725729578895,0.81533,2293.0,2292.7,0.43617]
[1725729579496,0.81533,2293.0,2292.8,0.383]
[1725729581290,3.2078,2293.4,2292.9,10.5894]
[1725729581497,0.43603,2293.6,2293.3,0.43606]
[1725729581794,3.2078,2293.8,2293.3,0.43606]
[1725729582095,0.43602,2293.6,2293.4,0.383]
[1725729582597,3.2078,2293.8,2293.4,0.81904]
[1725729582899,0.436,2293.7,2293.4,0.81904]
[1725729583789,0.43603,2293.5,2293.1,0.4361]
[1725729584098,3.2078,2293.5,2292.9,0.3785]
[1725729584284,2.21335,2293.4,2292.9,0.81464]
[1725729584595,0.43611,2293.1,2292.9,0.3785]
[1725729584790,2.21335,2293.4,2292.9,0.3785]
[1725729585186,0.43611,2293.1,2292.9,0.3785]
[1725729585391,0.43613,2293.0,2292.9,0.3785]
[1725729585600,0.43612,2293.1,2292.8,0.82616]
[1725729586691,0.4361,2293.2,2292.9,0.43614]
[1725729586891,0.43611,2293.1,2292.9,0.80614]
[1725729587092,0.4361,2293.2,2292.9,0.80614]
[1725729587388,0.43611,2293.1,2292.9,0.80614]
[1725729587991,3.2078,2293.5,2293.1,0.4361]
[1725729588198,0.43606,2293.4,2293.2,0.385]
[1725729588396,0.43606,2293.4,2293.3,0.3933]
[1725729590197,0.3954,2293.6,2293.3,0.3933]
[1725729591000,0.43605,2293.4,2293.3,0.3933]
[1725729591295,0.43607,2293.3,2293.2,0.385]
[1725729596904,0.4361,2293.2,2293.0,0.82732]
[1725729597099,0.4361,2293.2,2293.0,1.21952]
[1725729598407,0.43611,2293.1,2293.0,1.21952]
[1725729598707,0.43611,2293.1,2293.0,0.7834]
[1725729599096,0.43611,2293.1,2293.0,1.21953]
[1725729600405,0.4361,2293.2,2293.0,1.21953]
[1725729600796,0.43611,2293.1,2293.0,1.21953]
[1725729601200,0.43611,2293.1,2293.0,0.7834]
[1725729602806,0.4361,2293.2,2293.0,1.21953]
[1725729603006,0.7194,2293.5,2293.1,0.43609]
[1725729603205,0.43608,2293.3,2293.1,0.43609]
[1725729603404,0.43609,2293.3,2293.1,0.43609]
[1725729603709,0.7194,2293.5,2293.1,0.43609]
[1725729603908,1.80951,2293.5,2293.1,0.43609]
[1725729605010,1.09013,2293.4,2293.0,1.21951]
[1725729605505,0.43611,2293.2,2293.0,1.21951]
[1725729605707,0.43611,2293.1,2293.0,1.21951]
[1725729606208,0.43611,2293.1,2292.9,0.80614]
[1725729606892,0.43611,2293.1,2293.0,0.43613]
[1725729607093,0.43611,2293.1,2292.9,0.80613]
[1725729608497,0.43611,2293.1,2293.0,0.43613]
[1725729608694,0.4361,2293.2,2293.0,0.43613]
[1725729608999,0.43611,2293.1,2293.0,0.43613]
[1725729609810,0.43611,2293.1,2292.9,0.80613]
[1725729610194,4.3608,2293.1,2292.8,0.3778]
[1725729610501,0.43622,2292.5,2292.4,4.169]
[1725729610703,0.43625,2292.4,2292.0,3.42884606]
[1725729610901,3.42568265,2292.9,2292.3,0.43625]
[1725729610902,0.43622,2292.6,2292.3,0.43625]
[1725729611411,0.43623,2292.5,2292.3,0.43625]
[1725729611609,0.43622,2292.6,2292.3,0.43625]
[1725729611806,0.43622,2292.6,2292.4,0.3838]
[1725729612712,1.164,2293.0,2292.4,0.3838]
[1725729613010,0.43615,2292.9,2292.7,1.26]
[1725729613214,0.43615,2292.9,2292.8,0.3838]
[1725729613413,0.43617,2292.8,2292.6,0.43619]
[1725729613613,0.43617,2292.8,2292.7,0.3838]
[1725729613909,0.43616,2292.9,2292.7,0.81998]
[1725729614419,0.43616,2292.9,2292.7,0.3838]
[1725729615108,1.20594,2293.0,2292.7,0.81997]
[1725729615311,0.43615,2292.9,2292.7,0.81997]
[1725729615614,0.43613,2293.0,2292.7,0.81997]
[1725729615804,0.43612,2293.1,2292.8,0.43616]
[1725729616000,0.43612,2293.1,2292.9,0.7131]
[1725729616603,0.43613,2293.0,2292.9,0.7131]
[1725729617418,0.43612,2293.1,2292.9,0.7131]
[1725729617711,0.43613,2293.0,2292.9,0.7131]
[1725729617918,0.43612,2293.1,2292.9,0.7131]
[1725729618108,0.43613,2293.0,2292.9,0.7131]
[1725729618717,1.22261,2293.2,2293.0,0.43613]
[1725729618919,1.2226,2293.2,2293.0,0.43611]
[1725729619115,1.2226,2293.2,2293.1,0.3881]
[1725729619116,0.4361,2293.2,2293.1,0.3881]
[1725729621116,0.43613,2293.0,2292.9,0.3566]
[1725729621419,0.43616,2292.8,2292.7,1.90546659]
[1725729621612,0.43616,2292.8,2292.7,2.29226659]
[1725729621818,0.43615,2292.9,2292.7,2.72844659]
[1725729622415,0.43615,2292.9,2292.7,1.59478]
[1725729624318,0.43614,2293.0,2292.7,1.59478]
[1725729624519,0.43614,2293.0,2292.8,0.43616]
[1725729627214,0.43615,2292.9,2292.7,1.59478]
[1725729627415,0.43621,2292.6,2292.4,4.60523]
[1725729627613,0.43621,2292.6,2292.4,1.55923]
[1725729628514,0.43622,2292.5,2292.4,1.123]
[1725729628715,0.43621,2292.6,2292.4,1.55924]
[1725729628915,1.19579,2292.7,2292.5,0.43622]
[1725729629115,0.43619,2292.7,2292.5,0.43622]
[1725729629323,0.43619,2292.7,2292.4,1.123]
[1725729629525,0.43619,2292.7,2292.5,0.43622]
[1725729631922,0.43618,2292.8,2292.6,0.4362]
[1725729632923,0.43616,2292.9,2292.7,0.43618]
[1725729633114,0.43616,2292.9,2292.8,0.7736]
[1725729636528,3.64393,2293.1,2292.8,0.7736]
[1725729636728,0.43613,2293.0,2292.9,0.3603]
[1725729638131,3.2078,2293.1,2293.0,0.43613]
[1725729638837,0.8252,2293.2,2293.0,0.43613]
[1725729639427,0.8252,2293.2,2292.9,0.3603]
[1725729639428,0.43611,2293.1,2292.9,0.79644]
[1725729640727,0.8252,2293.2,2292.9,0.79644]
[1725729641130,0.43611,2293.1,2292.9,0.3603]
[1725729641331,0.43615,2292.9,2292.8,0.7736]
[1725729641532,0.43615,2292.9,2292.7,1.56984659]
[1725729642233,0.82923,2293.0,2292.8,0.43616]
[1725729642433,4.00838,2293.3,2293.0,0.43612]
[1725729642637,4.00838,2293.3,2293.1,0.7585]
[1725729642936,4.00838,2293.3,2293.1,1.152]
[1725729643142,4.00838,2293.3,2293.1,1.58811]
[1725729643439,0.43608,2293.3,2293.1,1.58811]
[1725729644231,0.43607,2293.4,2293.1,1.58811]
[1725729645641,0.43607,2293.3,2293.1,1.58811]
[1725729645835,0.81767,2293.3,2293.1,1.58811]
[1725729646535,0.3816,2293.3,2293.1,0.3935]
[1725729646728,0.43612,2293.1,2292.8,1.16136]
[1725729646931,0.43614,2293.0,2292.8,1.0927]
[1725729647247,0.43615,2292.9,2292.8,1.0927]
[1725729647433,0.43615,2292.9,2292.7,0.43618]
[1725729648341,0.43615,2292.9,2292.6,0.43619]
[1725729648540,0.3859,2292.8,2292.6,0.43619]
[1725729649132,0.3859,2292.8,2292.7,0.43618]
[1725729650036,0.82575,2292.9,2292.7,0.43618]
[1725729650340,0.82575,2292.9,2292.6,0.4362]
[1725729650643,0.82575,2292.9,2292.7,0.43618]
[1725729651433,0.43615,2292.9,2292.7,0.43618]
[1725729652040,0.43614,2293.0,2292.7,0.43618]
[1725729652236,0.43614,2293.0,2292.8,0.43616]
[1725729652437,0.43614,2293.0,2292.5,1.0896]
[1725729652438,0.43615,2292.9,2292.7,0.43618]
[1725729652637,0.43615,2292.9,2292.7,1.56984659]
[1725729654849,0.43616,2292.8,2292.7,1.13366659]
[1725729655149,0.43616,2292.9,2292.7,0.43618]
[1725729656947,0.43614,2293.0,2292.8,0.43616]
[1725729657152,0.43614,2293.0,2292.9,0.7259]
[1725729657446,0.43614,2293.0,2292.9,1.0949]
[1725729658647,0.3859,2293.1,2292.9,1.53103]
[1725729658845,0.82201,2293.1,2292.9,1.53103]
[1725729659153,0.43611,2293.1,2292.9,1.53103]
[1725729659356,0.3641,2293.3,2292.9,1.0949]
[1725729659549,0.43611,2293.1,2292.9,1.53104]
[1725729660250,0.3641,2293.3,2292.9,1.0949]
[1725729660553,0.43613,2293.0,2292.9,0.7267]
[1725729660950,1.45431,2293.3,2292.8,1.13366659]
[1725729661158,0.43616,2292.8,2292.7,1.13366659]
[1725729661656,0.43616,2292.9,2292.7,1.56984659]
[1725729663461,1.19384,2293.0,2292.7,1.56984659]
[1725729665567,0.43615,2292.9,2292.7,1.13366659]
[1725729665868,1.19383,2293.0,2292.7,0.43618]
[1725729666169,1.19383,2293.0,2292.7,1.56984659]
[1725729666971,0.43609,2293.2,2292.9,0.43613]
[1725729667162,0.3598,2293.2,2293.0,0.80282]
[1725729667664,0.3598,2293.2,2293.1,0.43611]
[1725729668369,0.3598,2293.2,2293.0,0.7281]
[1725729668370,0.43606,2293.4,2293.0,1.9881]
[1725729668568,0.43606,2293.4,2293.1,0.43609]
[1725729669368,0.43607,2293.3,2293.1,0.43609]
[1725729669759,4.4678,2293.3,2293.0,0.7281]
[1725729669965,0.43611,2293.1,2293.0,0.3667]
[1725729670362,1.54661,2293.2,2293.0,0.3667]
[1725729670961,0.3621,2293.2,2293.0,0.80282]
[1725729671270,3.64388,2293.3,2293.0,0.80282]
[1725729672768,0.43609,2293.2,2293.0,0.80282]
[1725729673767,0.43609,2293.2,2293.0,0.3667]
[1725729674275,0.43609,2293.2,2293.0,0.80283]
[1725729674463,0.3566,2293.3,2292.8,0.3572]
[1725729674661,0.4362,2292.7,2292.4,4.60523]
[1725729674866,0.4362,2292.6,2292.4,4.97913]
[1725729675066,0.43622,2292.5,2292.4,0.3739]
[1725729675365,3.2078,2292.5,2292.1,1.13366659]
[1725729675567,0.3686,2292.4,2292.0,0.7684]
[1725729675766,4.29854,2292.2,2291.8,1.13366659]
[1725729676069,0.43637,2291.7,2291.6,4.169]
[1725729676276,0.43636,2291.8,2291.2,1.13366659]
[1725729676569,0.43643,2291.5,2291.0,5.73916659]
[1725729676774,3.2078,2291.6,2290.9,1.96468659]
[1725729676970,3.2078,2291.6,2290.9,0.3945]
[1725729677275,0.43646,2291.3,2290.9,0.3945]
[1725729677662,3.2078,2291.6,2290.9,0.3945]
[1725729677663,0.43644,2291.4,2290.9,0.83103]
[1725729677860,3.64421,2291.6,2291.1,0.43648]
[1725729678574,3.2078,2291.6,2290.9,3.4145]
[1725729678765,3.2078,2291.6,2290.9,0.3945]
[1725729678966,0.43645,2291.4,2290.9,0.3945]
[1725729679471,0.43645,2291.4,2290.9,0.83102]
[1725729679780,0.43642,2291.5,2290.9,0.83102]
[1725729680670,0.43642,2291.5,2291.0,0.43651]
[1725729681667,3.2078,2291.6,2290.9,0.3945]
[1725729681871,0.43642,2291.5,2290.9,0.3945]
[1725729682170,0.43642,2291.5,2290.9,0.83101]
[1725729682967,0.43642,2291.5,2291.1,0.43648]
[1725729683162,3.2078,2291.6,2291.1,0.43648]
[1725729683361,3.6442,2291.6,2291.1,0.43648]
[1725729683772,0.43641,2291.5,2291.1,0.43648]
[1725729684070,3.2078,2291.6,2291.2,0.43646]
[1725729684273,3.6442,2291.6,2291.2,0.43646]
[1725729686064,0.43642,2291.5,2291.1,3.45648]
[1725729686264,0.4364,2291.6,2291.2,0.43647]
[1725729687069,0.4364,2291.6,2291.2,0.43646]
[1725729688371,0.4364,2291.6,2291.3,0.43644]
[1725729688671,0.4364,2291.6,2291.2,0.79646]
[1725729689674,0.4364,2291.6,2291.3,0.43645]
[1725729689885,0.4364,2291.6,2291.2,0.36]
[1725729689886,0.4364,2291.6,2291.2,0.79646]
[1725729691074,0.4364,2291.6,2291.3,0.43645]
[1725729691277,3.64418,2291.7,2291.4,0.43643]
[1725729691572,3.2078,2291.7,2291.5,0.4364]
[1725729692873,3.2078,2291.7,2291.5,0.7939]
[1725729693574,3.64418,2291.7,2291.5,0.7939]
[1725729693979,3.2078,2291.7,2291.5,0.7939]
[1725729694876,3.2078,2291.7,2291.5,0.3575]
[1725729695079,3.2078,2291.7,2291.5,0.79391]
[1725729695477,3.64418,2291.7,2291.5,0.79391]
[1725729695973,0.43639,2291.6,2291.5,0.3575]
[1725729696177,0.43639,2291.6,2291.4,0.3797]
[1725729697471,0.4364,2291.6,2291.4,0.3797]
[1725729697673,0.4364,2291.6,2291.4,0.81613]
[1725729698376,0.4364,2291.6,2291.4,0.3797]
[1725729699073,0.4364,2291.6,2291.4,0.81612]
[1725729699277,3.64418,2291.7,2291.4,0.81612]
[1725729699575,3.64418,2291.7,2291.5,0.43641]
[1725729700572,3.64417,2291.7,2291.5,0.43641]
[1725729700774,3.2078,2291.7,2291.5,0.43641]
[1725729700984,3.64417,2291.7,2291.5,0.43641]
[1725729702086,3.2078,2291.7,2291.5,0.43641]
[1725729702581,7.5718,2291.7,2291.2,0.7217]
[1725729702781,7.5718,2291.7,2291.2,0.3617]
[1725729702782,0.43645,2291.3,2291.2,0.3617]
[1725729706083,1.1445,2291.6,2291.3,0.43644]
[1725729706084,0.43642,2291.5,2291.3,0.43644]
[1725729706276,0.43642,2291.5,2291.3,0.80344]
[1725729709291,1.1445,2291.6,2291.2,0.79816]
[1725729709592,0.43645,2291.4,2291.2,0.79817]
[1725729715197,0.43645,2291.3,2291.2,0.3617]
[1725729715582,0.43645,2291.3,2291.1,0.43648]
[1725729715894,0.43648,2291.2,2291.0,0.7488]
[1725729716187,0.43649,2291.2,2291.0,1.1853]
[1725729716587,1.09111,2291.4,2291.0,1.1853]
[1725729716783,0.43648,2291.2,2291.0,1.1853]
[1725729717894,4.29886,2291.5,2291.0,0.7488]
[1725729718297,0.43647,2291.2,2291.0,0.7488]
[1725729718790,0.43647,2291.2,2291.0,1.18529]
[1725729720896,3.64422,2291.5,2291.3,0.43644]
[1725729721391,0.43643,2291.4,2291.1,1.13366659]
[1725729721593,0.43643,2291.4,2291.2,0.43646]
[1725729721788,0.43643,2291.4,2291.3,0.43645]
[1725729722181,0.43643,2291.4,2291.2,0.43646]
[1725729722586,0.43643,2291.4,2291.3,0.43645]
[1725729723193,0.43645,2291.3,2291.2,0.43646]
[1725729723394,0.43644,2291.4,2291.2,0.43646]
[1725729725201,3.64422,2291.5,2291.3,0.43645]
[1725729725399,3.64422,2291.5,2291.4,1.1077]
[1725729725704,0.43642,2291.5,2291.4,1.1077]
[1725729727295,0.8124,2291.6,2291.4,1.54412]
[1725729727692,0.4364,2291.6,2291.4,1.54412]
[1725729728402,0.43638,2291.7,2291.5,0.43641]
[1725729728794,0.4364,2291.6,2291.4,1.54412]
[1725729729498,1.26,2291.7,2291.2,1.13366659]
[1725729729705,0.43644,2291.4,2291.2,0.79326]
[1725729730099,0.43645,2291.3,2291.2,0.3568]
[1725729731101,0.43647,2291.2,2291.1,1.90996659]
[1725729731402,0.43649,2291.1,2291.0,4.34146659]
[1725729731599,0.43648,2291.2,2291.0,3.64431]
[1725729732003,0.43648,2291.2,2291.0,3.2078]
[1725729732691,0.43648,2291.2,2291.0,3.64431]
[1725729733706,0.43648,2291.2,2291.0,0.43651]
[1725729734703,0.43649,2291.1,2290.9,5.52308659]
[1725729735002,0.43648,2291.2,2291.0,0.43651]
[1725729735205,0.43647,2291.2,2291.0,1.57017659]
[1725729735899,0.43644,2291.4,2291.2,0.43646]
[1725729736603,3.2078,2291.5,2291.2,0.358]
[1725729736799,3.64423,2291.5,2291.3,0.80055]
[1725729737001,3.64423,2291.5,2291.4,0.3877]
[1725729737606,0.43643,2291.5,2291.4,0.3877]
[1725729738601,0.43643,2291.5,2291.4,0.82413]
[1725729738908,0.43643,2291.5,2291.4,0.3877]
[1725729739106,0.43641,2291.6,2291.4,0.82413]
[1725729739304,0.43641,2291.6,2291.4,0.82412]
[1725729739496,0.43641,2291.5,2291.4,0.82412]
[1725729740405,1.46822,2291.8,2291.4,0.82412]
[1725729740706,0.43641,2291.5,2291.4,0.82412]
[1725729740905,0.43641,2291.5,2291.4,0.3877]
[1725729741810,1.46822,2291.8,2291.2,1.92812659]
[1725729741811,0.43644,2291.4,2291.2,1.92812659]
[1725729742007,0.43644,2291.4,2291.2,1.15796]
[1725729742908,1.19623,2291.5,2291.3,0.43645]
[1725729743108,0.43643,2291.4,2291.3,0.43645]
[1725729744608,1.19623,2291.5,2291.3,0.43645]
[1725729745204,1.19623,2291.5,2291.2,1.85516659]
[1725729745405,3.64421,2291.6,2291.4,0.43642]
[1725729745619,3.64421,2291.6,2291.5,0.3713]
[1725729745915,0.43641,2291.6,2291.5,0.3713]
[1725729746112,0.3773,2291.8,2291.5,0.3713]
[1725729746413,0.43638,2291.7,2291.6,0.3926]
[1725729747608,0.43638,2291.7,2291.6,0.7566]
[1725729749510,3.64415,2291.9,2291.7,0.43637]
[1725729750616,3.64415,2291.9,2291.6,0.7566]
[1725729750617,0.43636,2291.8,2291.6,1.19298]
[1725729753207,0.43637,2291.7,2291.6,0.7566]
[1725729753610,0.43641,2291.5,2291.4,1.13366659]
[1725729753820,0.43641,2291.5,2291.3,1.86706659]
[1725729754111,0.43641,2291.6,2291.4,0.43642]
[1725729754717,1.09097,2291.7,2291.3,2.30350659]
[1725729754915,3.2078,2291.6,2291.3,1.51016659]
[1725729755121,0.43643,2291.4,2291.3,0.81295]
[1725729755317,0.43643,2291.5,2291.3,0.81295]
[1725729755621,0.43643,2291.5,2291.1,1.13366659]
[1725729755622,1.09109,2291.4,2291.1,1.13366659]
[1725729755917,0.43648,2291.2,2291.0,6.10156659]
[1725729756114,0.43648,2291.2,2291.0,1.93256659]
[1725729757509,0.43648,2291.2,2291.1,0.43649]
[1725729757723,2.21809,2291.4,2291.1,0.43649]
[1725729757724,0.43646,2291.3,2291.1,0.43649]
[1725729757919,0.43646,2291.3,2291.1,1.57015659]
[1725729758224,0.43646,2291.3,2291.2,0.391]
[1725729759322,0.7499,2291.4,2291.2,0.82746]
[1725729759323,0.43644,2291.4,2291.2,0.82746]
[1725729759514,0.43645,2291.3,2291.2,0.82746]
[1725729760431,0.43644,2291.4,2291.2,0.82746]
[1725729762626,0.43645,2291.3,2291.2,0.82746]
[1725729763124,0.43645,2291.3,2291.2,0.391]
[1725729763819,0.43645,2291.3,2291.2,0.82747]
[1725729767632,0.3684,2291.6,2291.2,0.391]
[1725729767827,0.43643,2291.5,2291.3,0.43644]
[1725729768333,0.43643,2291.5,2291.4,0.3744]
[1725729773134,0.4364,2291.6,2291.4,0.81082]
[1725729773537,0.43641,2291.5,2291.4,0.81082]
[1725729773742,0.43641,2291.5,2291.4,0.3744]
[1725729774432,0.4364,2291.6,2291.4,4.7384]
[1725729774743,0.4364,2291.6,2291.4,0.3744]
[1725729775048,0.4364,2291.6,2291.4,0.81082]
[1725729775436,3.6033,2291.9,2291.4,0.3744]
[1725729775643,3.2078,2291.9,2291.7,0.43636]
[1725729775846,3.2078,2291.9,2291.8,1.22066]
[1725729776044,3.2078,2291.9,2291.8,0.7843]
[1725729776343,0.43639,2291.6,2291.4,1.57008659]
[1725729776643,0.43641,2291.5,2291.4,0.7843]
[1725729776844,0.43643,2291.4,2291.3,0.3645]
[1725729778050,0.43643,2291.5,2291.3,0.3645]
[1725729780347,4.4678,2291.7,2291.3,0.3645]
[1725729780553,4.4678,2291.7,2291.3,0.80094]
[1725729780554,0.4364,2291.6,2291.3,0.80094]
[1725729780748,1.1597,2291.8,2291.3,0.3645]
[1725729780951,3.64413,2292.0,2291.7,0.43636]
[1725729781147,0.43634,2291.9,2291.8,1.1189]
[1725729781346,3.2078,2292.0,2291.8,1.1189]
[1725729781347,3.64413,2292.0,2291.8,1.1189]
[1725729783343,3.64413,2292.0,2291.8,1.55525]
[1725729783750,3.64413,2292.0,2291.8,1.1189]
[1725729785558,3.2078,2292.0,2291.8,1.55525]
[1725729785745,1.5256,2292.2,2291.9,0.43634]
[1725729785949,1.0893,2292.2,2292.0,0.43632]
[1725729786560,0.79508,2292.2,2291.9,0.43633]
[1725729786860,0.3588,2292.2,2292.0,0.43631]
[1725729787155,0.43628,2292.2,2292.0,0.43631]
[1725729787853,0.43627,2292.3,2292.0,0.43631]
[1725729788958,0.42133979,2292.9,2292.0,6.2278]
[1725729788959,3.42194794,2292.9,2292.0,6.2278]
[1725729789259,3.42194794,2292.9,2292.2,0.43627]
[1725729789260,0.43622,2292.5,2292.2,0.43627]
[1725729789458,0.43622,2292.5,2292.2,1.18177]
[1725729789659,0.43622,2292.5,2292.2,1.54267]
[1725729792660,0.43621,2292.6,2292.3,0.43625]
[1725729793260,0.43621,2292.6,2292.3,0.43626]
[1725729795866,0.43622,2292.5,2292.3,0.43626]
[1725729797956,0.43628,2292.2,2291.9,1.13366659]
[1725729798254,0.43628,2292.2,2292.0,0.43631]
[1725729798457,0.43627,2292.3,2292.0,0.43631]
[1725729798654,0.43627,2292.3,2292.0,0.43632]
[1725729799665,0.43628,2292.2,2292.0,0.43632]
[1725729799869,0.4363,2292.1,2291.9,1.54383]
[1725729800173,0.4363,2292.1,2291.9,0.7309]
[1725729800469,0.43632,2292.0,2291.7,3.5844]
[1725729800666,0.43636,2291.8,2291.7,3.2078]
[1725729800866,0.43635,2291.9,2291.7,3.2078]
[1725729801559,1.55753,2292.0,2291.7,3.2078]
[1725729803069,0.43634,2291.9,2291.7,3.2078]
[1725729803264,1.55753,2292.0,2291.7,3.2078]
[1725729804669,0.43634,2291.9,2291.7,3.2078]
[1725729805263,1.55753,2292.0,2291.7,3.2078]
[1725729807675,1.55753,2292.0,2291.6,1.16909]
[1725729807974,0.43634,2291.9,2291.6,1.16909]
[1725729808675,1.18613,2292.0,2291.8,0.43635]
[1725729808862,1.18613,2292.0,2291.6,1.9927]
[1725729808863,0.82493,2292.0,2291.7,0.43636]
[1725729809465,0.82493,2292.0,2291.8,0.43635]
[1725729810073,3.64411,2292.1,2291.9,0.43633]
[1725729811280,3.2078,2292.1,2291.9,0.43633]
[1725729811475,3.2078,2292.1,2292.0,1.51392]
[1725729813068,0.81777,2292.3,2292.0,1.51392]
[1725729813269,0.43628,2292.2,2292.0,1.51392]
[1725729817677,0.81777,2292.3,2292.0,1.51392]
[1725729818770,0.7347,2292.4,2292.0,1.0776]
[1725729818771,0.80735,2292.4,2292.0,1.0776]
[1725729818975,0.43625,2292.4,2292.2,0.43628]
[1725729819177,0.43623,2292.5,2292.3,0.43625]
[1725729819370,0.43623,2292.5,2292.1,1.26]
[1725729819371,0.43623,2292.5,2292.4,1.1568]
[1725729821170,0.7588,2292.6,2292.4,1.1568]
[1725729821171,1.19501,2292.6,2292.4,1.1568]
[1725729821370,0.43622,2292.5,2292.4,1.1568]
[1725729823181,0.82729,2292.7,2292.4,1.1568]
[1725729823386,2.08729,2292.7,2292.4,1.59303]
[1725729823586,2.08729,2292.7,2292.5,0.43622]
[1725729824083,2.08729,2292.7,2292.4,1.59303]
[1725729826879,1.69619,2292.7,2292.4,1.59303]
[1725729827080,1.20598,2292.8,2292.5,0.43621]
[1725729827289,0.7698,2292.8,2292.4,1.1568]
[1725729827478,0.43619,2292.7,2292.4,1.59303]
[1725729829084,0.43619,2292.7,2292.5,0.43622]
[1725729829283,0.43619,2292.7,2292.4,1.59303]
[1725729831589,0.43618,2292.7,2292.4,1.59303]
[1725729833087,0.43621,2292.6,2292.4,1.59303]
[1725729833280,0.4362,2292.7,2292.4,1.59303]
[1725729838291,0.4362,2292.6,2292.4,1.59303]
[1725729839186,0.4362,2292.7,2292.4,1.59303]